Cogmind - Beta 16 @@@ ROGUE MODE // 2025.12.25 @ 22:15:07 Player: Moose Result: Destroyed by G-34 Mercenary with Small Laser Performance ------------- Evolutions (0) 0 Regions Visited (1) 200 Robots Destroyed (27) 135 Value Destroyed (505) 505 Prototype IDs (0) 0 Alien Tech Used (0) 0 Bonus (0) 0 TOTAL SCORE: 840 Bonus ------- None Cogmind --------- Core Integrity 0/250 Matter 278/300 Energy 99/100 System Corruption 1% Temperature Cool (6) Movement Walking (260) Ox2 Location -10/Materials Parts ------- > --- POWER (1) -------- (None) > --- PROPULSION (2) --- Aluminum Leg > --- UTILITY (2) ------ Large Storage Unit > --- WEAPON (2) ------- Light Assault Rifle > --- INVENTORY (15) --- Light Ion Engine Aluminum Leg Heat Sink Power Shielding EM Pulse Gun Medium Laser Medium Laser Datajack Peak State ------------ > --- POWER ------------ Light Ion Engine > --- PROPULSION ------- Aluminum Leg Aluminum Leg > --- UTILITY ---------- Visual Processing Unit Improved Terrain Scanner > --- WEAPON ----------- Medium Laser Medium Laser > --- INVENTORY -------- Aluminum Leg Heat Sink Seismic Detector Small Laser Light Assault Rifle [Rating: 10] Favorites ----------- Power Light Ion Engine Engine Light Ion Engine Propulsion Aluminum Leg Leg Aluminum Leg Utility Improved Terrain Scanner Device Improved Terrain Scanner Storage Large Storage Unit Processor Visual Processing Unit Protection Power Shielding Weapon Medium Laser Energy Gun Medium Laser Ballistic Gun Light Assault Rifle Launcher Grenade Launcher Build | -11 -10 ------- Run | Yrd Mat Slots Evolved . | . . Power . | . . Propulsion . | . . Utility . | . . Weapon . | . . Parts Attached 22 | 8 14 Power 5 | 1 4 Engine 5 | 1 4 Core . | . . Reactor . | . . Propulsion 5 | 2 3 Treads . | . . Leg 5 | 2 3 Wheel . | . . Hover . | . . Flight . | . . Utility 7 | 3 4 Device 3 | 3 . Storage 1 | . 1 Processor 2 | . 2 Hackware . | . . Protection 1 | . 1 Artifact . | . . Weapon 5 | 2 3 Energy Gun 2 | 1 1 Energy Cannon . | . . Ballistic Gun 2 | 1 1 Ballistic Cannon . | . . Launcher 1 | . 1 Special Weapon . | . . Impact Weapon . | . . Slashing Weapon . | . . Piercing Weapon . | . . Special Melee Weapon . | . . Unidentified Prototypes . | . . Parts Lost 7 | . 7 Power 2 | . 2 Propulsion 2 | . 2 Utility 1 | . 1 Weapon 2 | . 2 Highest Loss Streak 2 | . 2 To Critical Strikes 1 | . 1 Average Backups 4 | 3 5 Power . | . . Propulsion 1 | 1 . Utility . | . 1 Weapon 1 | 1 2 Tool/Special . | . . Unused Backups 9 | 5 4 Power 1 | 1 . Propulsion 3 | 3 . Utility . | . . Weapon 4 | 1 3 Tool/Special 1 | . 1 Average Slot Usage (%) 88 | . 88 Engine 10 | . 10 Leg 24 | . 24 Device 12 | . 12 Storage 4 | . 4 Processor 4 | . 4 Protection 3 | . 3 Energy Gun 17 | . 17 Ballistic Gun 8 | . 8 Peak Build Rating 10 | 9 10 Average Rating 6 | 5 7 On Entrance 4 | . 9 Avg Prop Armor Cover (%) . | . . Naked Turns . | . . Heaviest Build 27 | 8 27 Greatest Support 20 | 20 20 Greatest Overweight (x) 2 | . 2 Average Overweight (x) . | . . Largest Inventory Capacity 15 | 5 15 Average Capacity 6 | 5 8 Most Carried 8 | 5 8 Average Carried 4 | 3 5 Final Capacity 15 | 5 15 Final Carried 8 | 5 8 Class Distribution -------------------- 85% | Mutant 14% | Scavenger-Mutant Dominant Class ---------------- Mutant | -10/Materials Resources | -11 -10 ----------- Run | Yrd Mat Matter Collected 476 | 293 183 Remotely . | . . Salvage Created 716 | 134 582 Parts 58 | 22 36 Haulers Intercepted . | . . Recyclers Shooed . | . . Parts Field Recycled . | . . Retrieved Matter . | . . Parts Self-Destructed . | . . Prevented . | . . Parts Restored . | . . Kills | -11 -10 ------- Run | Yrd Mat Combat Hostiles Destroyed 17 | 1 16 Guns 15 | 1 14 AOE 2 | . 2 Classes Destroyed 7 | 3 4 Worker 3 | 1 2 Builder 1 | . 1 Tunneler 4 | 4 . Recycler 1 | . 1 Watcher 1 | . 1 Swarmer 6 | . 6 Grunt 11 | 1 10 Best Kill Streak 7 | 4 7 Combat Bots Only 5 | 1 5 Max Kills in Single Turn 2 | 1 2 Gunslinging . | . . Exploded 1 | . 1 Melee . | . . Uniques/NPCs Destroyed . | . . Combat | -11 -10 -------- Run | Yrd Mat Hostile Shots Fired 154 | 1 153 Missed 54 | . 54 Hits 100 | 1 99 Projectile 100 | 1 99 Critical Strikes 3 | . 3 Damage Taken 1064 | 10 1054 Core 259 | . 259 Absorbed by Shields . | . . Redirected to Shielding 6 | . 6 Core Remaining (%) 100 | 100 . Volleys Fired 93 | 14 79 Largest 2 | 2 2 Hottest 100 | 70 100 Shots Fired 160 | 28 132 Gun 157 | 28 129 Cannon . | . . Launcher 3 | . 3 Special . | . . Kinetic 73 | 14 59 Thermal 84 | 14 70 Explosive 3 | . 3 Electromagnetic . | . . Robot Hit Streak 11 | 11 8 Robot Miss Streak 5 | 3 5 Penetration Max . | . . Secondary Targets 5 | . 5 Max Gunslinging Chain 1 | . 1 Shots Hit Robots 87 | 17 70 Core Hits 49 | 10 39 Critical Kills . | . . Critical Parts Destroyed . | . . Critical Strikes 7 | 2 5 Burn 7 | 2 5 Melee Attacks . | . . Impact . | . . Slashing . | . . Piercing . | . . Sneak Attacks . | . . Combat Hostiles . | . . Follow-up Attacks . | . . Damage Inflicted 1247 | 190 1057 Guns 970 | 190 780 Cannons . | . . Explosions 277 | . 277 Melee . | . . Ramming . | . . Kinetic 330 | 50 280 Thermal 640 | 140 500 Explosive 277 | . 277 Electromagnetic . | . . Impact . | . . Slashing . | . . Piercing . | . . Highest Corruption 1 | . 1 Average Corruption 1 | . 1 Corruption Purged . | . . Corruption Blocked . | . . Effects 5 | . 5 Message Errors 1 | . 1 Heat Flow Errors 1 | . 1 Energy Discharges 2 | . 2 Data Loss (major) 1 | . 1 Overload Shots . | . . Overflow Damage . | . . Projectiles . | . . Explosions . | . . Melee . | . . Knockbacks . | . . Impact . | . . Kinetic . | . . Secondary . | . . Self-Inflicted Damage 69 | . 69 Shots 3 | . 3 Rammed . | . . Targets Rammed . | . . Kicked . | . . Crushed . | . . Highest Temperature 333 | 120 333 Average Temperature 90 | 45 99 Received Heat Transfer 423 | 6 417 Siege Activations . | . . Martial Activations . | . . Shielding Activations . | . . Robots Disrupted . | . . Combat Hostiles . | . . Robots Corrupted . | . . Combat Hostiles . | . . Parts Fried . | . . Impact Corruptions . | . . Robots Melted . | . . Combat Hostiles . | . . Parts Melted 3 | 2 1 Heat Transferred 2405 | 555 1850 Parts Sabotaged . | . . Parts Stolen . | . . Parts Stripped . | . . Power Chain Reactions . | . . Alert | -11 -10 ------- Run | Yrd Mat Maximum Alert Level . | . . Low Security (%) 100 | 100 100 Level 1 . | . . Level 2 . | . . Level 3 . | . . Level 4 . | . . Level 5 . | . . High Security . | . . Max Security . | . . Peak Influence 155 | 30 155 Initial . | . . Average 53 | 4 80 Influence Increases 472 | 45 427 Destroy 0b10 Robot/C 340 | 20 320 Destroy 0b10 Robot/NC 50 | 25 25 Destroy Leader 62 | . 62 Successful Hack 7 | . 7 Destroy Structure 13 | . 13 Influence Decreases 355 | 45 310 Time Decay 285 | 45 240 Lost Part 70 | . 70 Squads Dispatched 3 | . 3 Investigation 1 | . 1 Extermination . | . . Reinforcement 2 | . 2 Assault . | . . Garrison . | . . Intercept . | . . Searches Triggered . | . . Construction Impeded . | . . Haulers Reinforced . | . . Active Scanning Responses . | . . Cargo Convoy Interrupts . | . . Stealth | -11 -10 --------- Run | Yrd Mat Distress Signals . | . . Communications Jammed . | . . Distress Signals . | . . Times Spotted 22 | 1 21 Peak Tracking Total 4 | 1 4 Tactical Retreats . | . . Traps | -11 -10 ------- Run | Yrd Mat Traps Triggered 2 | . 2 Indirectly . | . . Trap Hack Attempts . | . . Triggered . | . . Disarmed . | . . Reprogrammed . | . . Reused . | . . Traps Extracted . | . . Installed . | . . Triggered . | . . Machines | -11 -10 ---------- Run | Yrd Mat Machines Disabled . | . . Max in Single Turn . | . . Machines Repaired . | . . Machines Dismantled . | . . Machines Sabotaged . | . . Overloaded Fab Kills . | . . Hacking | -11 -10 --------- Run | Yrd Mat Machines Accessed 2 | . 2 Terminals 2 | . 2 Fabricators . | . . Repair Stations . | . . Recycling Units . | . . Scanalyzers . | . . Garrison Access . | . . Total Hacks 9 | . 9 Successful 5 | . 5 Failed 4 | . 4 Catastrophic 1 | . 1 Database Lockouts . | . . Manual . | . . Terminals 9 | . 9 Fabricators . | . . Repair Stations . | . . Recycling Units . | . . Scanalyzers . | . . Garrison Access . | . . Terminal Hacks 5 | . 5 Branch Access Points 1 | . 1 Alert Level 2 | . 2 Hauler Manifests 1 | . 1 Zone Layout 1 | . 1 Fabricator Hacks . | . . Repair Station Hacks . | . . Recycling Unit Hacks . | . . Scanalyzer . | . . Garrison Access Hacks . | . . Unauthorized Hacks . | . . Terminals . | . . Fabricators . | . . Repair Stations . | . . Recycling Units . | . . Scanalyzers . | . . Garrison Access . | . . Data Cores Recovered . | . . Used . | . . Hacking Detections 2 | . 2 Full Trace Events 2 | . 2 Feedback Events . | . . Feedback Blocked . | . . Robot Schematics Acquired . | . . Robots Built . | . . Authchips . | . . Time . | . . Total Robot Build Rating . | . . Part Schematics Acquired . | . . Parts Built . | . . Authchips . | . . Time . | . . Total Part Build Rating . | . . Part Studies Acquired . | . . Parts Repaired . | . . Time . | . . Parts Recycled . | . . Recycled Matter . | . . Retrieved Matter . | . . Retrieved Components . | . . Parts Scanalyzed . | . . Part Schematics Acquired . | . . Parts Damaged . | . . Bothacking | -11 -10 ------------ Run | Yrd Mat Used RIF Installer . | . . Robots Hacked . | . . Non-combat . | . . Combat . | . . Robot Hacks Applied . | . . Relay Couplers Released . | . . Fabnet Peak Effective % . | . . Robots Rewired . | . . Allies Hacked . | . . Hacks Repelled . | . . Allies | -11 -10 -------- Run | Yrd Mat Total Allies . | . . Largest Group . | . . Highest-Rated Group . | . . Highest-Rated Ally . | . . Total Orders . | . . Ally Attacks . | . . Total Damage . | . . Kills . | . . Allies Corrupted . | . . Allies Melted . | . . Intel | -11 -10 ------- Run | Yrd Mat Active Infowar (turns) 470 | 97 373 Optics 127 | . 127 Terrain 357 | 84 273 Seismic 343 | 97 246 Robot Analysis Total . | . . Derelict Logs Recovered . | . . Drone Launches . | . . Drone Recoveries . | . . Exploration | -11 -10 ------------- Run | Yrd Mat Turns Passed 906 | 319 587 Spaces Moved 479 | 221 258 Core 21 | 21 . Treads . | . . Legs 458 | 200 258 Wheels . | . . Hover . | . . Flight . | . . Fastest Speed 50 | 50 120 Average Speed 125 | 113 136 Slowest Speed 260 | 120 260 Overloaded Moves . | . . Propulsion Burnouts . | . . Robots Hopped . | . . Potential Cave-ins . | . . Cave-ins Triggered . | . . Exploration Rate (%) 19 | 7 31 Regions Visited 1 Branch Regions . Pre-discovered Areas . | . . Known Exits Taken . | . . Unknown Exits Taken 1 | 1 . Scrap Searched . | . . Spaces Dug . | . . Terrain Destroyed 16 | . 16 Melee . | . . Projectile . | . . AOE 16 | . 16 Terrain Rammed . | . . Walls Destroyed . | . . Machines Disabled . | . . Actions | -11 -10 --------- Run | Yrd Mat Total 642 | 268 374 Wait . | . . Move 478 | 220 258 Hop . | . . Pick Up 33 | 19 14 Fast Attach . | . . Attach 12 | 7 5 Detach 1 | . 1 Swap 11 | 1 10 Drop 14 | 7 7 Fire 93 | 14 79 Melee . | . . Ram . | . . Kick . | . . Crush . | . . Escape Stasis . | . . Rewire . | . . Trap . | . . Miscellaneous . | . . Route ------- -11/Scrapyard -10/Materials (discovered 3 exits: [*Mat] / Min x2) History --------- Turn | Location | Event 2 | -11/Scrapyard | Met Revision 17 158 | -11/Scrapyard | Discovered new exit (range 8) 320 | -11/Scrapyard | Entered Materials 321 | -10/Materials | Build established: Mutant 462 | -10/Materials | Identified exit to Mines 505 | -10/Materials | Discovered new exit (range 16) 529 | -10/Materials | Core integrity fell below 50% 780 | -10/Materials | Core integrity fell below 20% 907 | -10/Materials | Destroyed by G-34 Mercenary with Small Laser Last Messages --------------- K-01 Serf collects debris. Acquired Lgt. Assault Rifle. K-01 Serf cleans the Nuclear Reactor. System corrupted: Heat flow error (+133). Acquired 30 matter. K-01 Serf cleans the Nuclear Reactor. V3UW%UYQOSC5<72:B,H:4SF =% Acquired Ion Engine. R-06 Scavenger collects Sml. Laser. Acquired 10 matter. R-06 Scavenger collects Aluminum Leg. R-06 Scavenger collects Lgt. Assault Rifle. R-06 Scavenger collects Sml. Laser. Critical hit (Burn: +37). Lgt. Assault Rifle destroyed. G-47 Trooper destroyed. K-01 Serf collects debris. System corrupted: Energy discharge (-80). K-01 Serf collects debris. Ion Engine destroyed. Map ----- +----------------------------------------------------+ | ???????????#####################"T"############### | | ???????????# [%* % *=^ | | ??#????????# < = =*% | | ???????????# % =%* | | ????#???#######+######## ##/#################### | | ????????# ## # ##???????????? | | ????????# T """ ## # T #????????????? | | ???????## """ ## # #????#??#????? | | ????????# !!! """ ## # #????????????? | | ????????# ! ## # #?#???##?????? | | ??????#?# ## # """ ##??#?#?#????# | | ????????################ # """ #??#??????#??? | | ??????????????????###### # """ #????????????? | | ??????????????? ? # # #?????????#??? | | ??????????????? # ##########?????????# | | ????????????????"" """ # #??????????????????# | | ????????????????"" """ # #??#??????#????#?# | | ????????????????"" """ + #?????##???#?????# | | ??????????? #k #????????????????# | | ???????????#############u ##########???????# ## | | ????????????????# # # #???????# ???? | | ????????????????# """ # # """ #????????????? | | ????????????????# """ + % # "R" #????????????? | | ????????????????# """ # %# " " #????????????? | | ????????????????# # !#== #????????????? | | ????????????????# # @ #% """ #????????????? | | ????????????????######## #[!= """ #????????????? | | ???????????????????????# %+%= """ #????????????? | | ???????????????????????# !!#*= #????????????? | | ???????????????????????# *##########????????????? | | ??????????????????????# ?????????????????????? | | ??????????????????????# ?????????????????????? | | ??????????????????????# ???????>????????????? | | ??????????????????????# ????????????????????? | | ??????????????????????# [g #????????????????????? | | ??????????????????????##%* ##????????????????????? | | ???????????????????????# #?????????????????????? | | ???????????????????????+ +?????????????????????? | | ???????????????????????# a#?????????????????????? | | ???????????????????????# ??????????????????????? | | ???????????????????????# ??????????????????????? | | ???????????????????????# ??????????????????????? | | ???????????????????????? ??????????????????????? | | ?????????????????????????????????????????????????? | | ?????????????????????????????????????????????????? | | ?????????????????????????????????????????????????? | | ?????????????????????????????????????????????????? | | ?????????????????????????????????????????????????? | | ?????????????????????????????????????????????????? | | ?????????????????????????????????????????????????? | +----------------------------------------------------+ Best States ------------- Heat Dissipation 35 Energy Generation 10 Energy Capacity 250 Matter Stores 300 Matter Capacity 300 Sight Range 18 Terrain Scan Range 16 Terrain Scan Density 10 Power Shielding 33 Evasion (%) 55 Targeting Accuracy 5 Item Schematics ----------------- None Robot Schematics ------------------ None Fabricated ------------ Nothing Repaired ---------- Nothing Studied --------- None Alien Tech Used ----------------- None Achievements -------------- DATA ERROR: Steam Global Achievement% I Have A Map? Shopping List Spot Them First Challenges ------------ None Game ------ Seed MappingElectrostormLoader Manual? 0 Play Time 00:16:23 Cumulative 1.0 hours Start 2025.12.25 @ 21:57:46 End 2025.12.25 @ 22:15:07 Sessions 1 Manual Loads 0 Difficulty Rogue Special Mode None Game No. 2 Rogue 2 Adventurer 0 Explorer 0 Win Type - Total 0 Types 0/0/0/0/0/0/0/0/0/0 Lore% 0 Gallery% 2 Achievement% 4 Wizard Run 0 Options --------- Layout 1 ASCII 0 Keyboard 0 Movement Arrows Keybinds 0 Fullscreen 1 Font 16/SmallcapsGlow Map View 55x38 Zoom Use 0% Tactical HUD 0 Map Filters NONE Filters NONE Steam 1 RUN: 63b0a692-bf0a-4c40-abff-51f6a192e57c